bitfinex/quotes_BTCUSD_20260101
["timestamp","ask_amount","ask_price","bid_price","bid_amount"]
[1767294364181,0.02450175,88221.0,88211.0,0.04988037]
[1767294364411,0.0001472,88224.0,88211.0,0.04988037]
[1767294364609,0.03513218,88223.0,88211.0,0.04988037]
[1767294364928,0.02449883,88222.0,88211.0,0.04988037]
[1767294365129,0.0001472,88224.0,88211.0,0.04988037]
[1767294365312,0.03513118,88223.0,88211.0,0.04988037]
[1767294365666,0.0001472,88224.0,88211.0,0.04988037]
[1767294365854,0.03512874,88223.0,88211.0,0.06121682]
[1767294366058,0.0001472,88224.0,88211.0,0.06121682]
[1767294366259,0.03512875,88223.0,88211.0,0.06121682]
[1767294366398,0.0001472,88224.0,88211.0,0.06121682]
[1767294366592,0.03512596,88223.0,88211.0,0.06121682]
[1767294366837,0.0001472,88224.0,88211.0,0.06121682]
[1767294367039,0.03512598,88223.0,88211.0,0.06121682]
[1767294367232,0.0001472,88224.0,88211.0,0.01133645]
[1767294367415,0.024493,88223.0,88211.0,0.01133645]
[1767294367814,0.024493,88223.0,88210.0,0.01133658]
[1767294368115,0.024493,88223.0,88209.0,0.02269671]
[1767294368494,0.0001472,88224.0,88215.0,0.01133594]
[1767294369338,0.0001472,88224.0,88214.0,0.01133606]
[1767294369539,0.0001472,88224.0,88215.0,0.01133594]
[1767294369957,0.0001472,88224.0,88216.0,0.01133581]
[1767294371086,0.0001472,88224.0,88215.0,0.01133594]
[1767294371308,0.0001472,88224.0,88213.0,0.01133619]
[1767294371452,0.0001472,88224.0,88214.0,0.01133606]
[1767294372090,0.0001472,88224.0,88215.0,0.01133594]
[1767294372587,0.0001472,88224.0,88212.0,0.01133632]
[1767294372791,0.0001472,88224.0,88210.0,0.5099773]
[1767294372992,0.0001472,88224.0,88212.0,0.01133632]
[1767294373363,0.0001472,88224.0,88211.0,0.01133645]
[1767294373874,0.0001472,88224.0,88210.0,0.45329447]
[1767294373875,0.0001472,88224.0,88210.0,0.46463105]
[1767294374097,0.0001472,88224.0,88211.0,0.01133645]
[1767294375311,0.0001472,88224.0,88210.0,0.46463105]
[1767294375689,0.0001472,88224.0,88210.0,0.01133619]
[1767294375943,0.0001472,88224.0,88210.0,0.46463105]
[1767294376501,0.04934846,88224.0,88210.0,0.45329447]
[1767294376715,0.04920126,88222.0,88202.0,0.01133761]
[1767294376915,0.04920126,88209.0,88200.0,0.00036322]
[1767294377744,0.04920126,88209.0,88201.0,0.01133773]
[1767294379418,0.04920126,88209.0,88202.0,0.01133761]
[1767294379602,0.04920126,88209.0,88201.0,0.01133773]
[1767294380618,0.04920126,88209.0,88202.0,0.01133761]
[1767294381882,0.04920126,88209.0,88200.0,0.01170108]
[1767294382272,0.04920126,88209.0,88200.0,0.00036322]
[1767294382470,0.04920126,88209.0,88201.0,0.01133773]
[1767294382945,0.04920126,88209.0,88202.0,0.01133761]
[1767294383331,0.04920126,88209.0,88201.0,0.01133773]
[1767294383757,0.04920126,88209.0,88202.0,0.01133761]
[1767294383974,0.04920126,88209.0,88200.0,0.01170108]
[1767294384397,0.04621186,88214.0,88202.0,0.01133761]
[1767294384561,0.04621186,88214.0,88201.0,0.01133773]
[1767294386014,0.04621186,88214.0,88202.0,0.01133761]
[1767294386342,0.04621186,88214.0,88201.0,0.01133773]
[1767294386763,0.04621186,88214.0,88202.0,0.01133761]
[1767294386967,0.04621186,88214.0,88201.0,0.01133773]
[1767294387169,0.04621186,88214.0,88202.0,0.01133761]
[1767294387714,0.04621186,88214.0,88200.0,0.00036322]
[1767294388006,0.04621186,88214.0,88200.0,0.01170108]
[1767294388230,0.04621186,88214.0,88200.0,0.00036322]
[1767294391400,0.04621186,88214.0,88200.0,0.01170108]
[1767294395013,0.04621186,88214.0,88201.0,0.01133773]
[1767294395526,0.04621186,88214.0,88200.0,0.01170108]
[1767294398460,0.04621186,88214.0,88201.0,0.01133773]
[1767294398861,0.04621186,88214.0,88200.0,0.01170108]
[1767294400668,0.04621186,88214.0,88200.0,0.00036322]
[1767294402981,0.04621186,88214.0,88200.0,0.00040716]
[1767294412534,0.04535145,88214.0,88200.0,0.00040716]
[1767294413193,0.04535145,88214.0,88200.0,0.01174502]
[1767294413594,0.04535145,88214.0,88200.0,0.00040716]
[1767294414012,0.04535145,88214.0,88200.0,0.01174502]
[1767294414418,0.04535145,88214.0,88200.0,0.00040716]
[1767294415232,0.04535145,88214.0,88200.0,0.01174502]
[1767294418557,0.04535145,88214.0,88200.0,0.45372989]
[1767294418716,0.04535145,88214.0,88200.0,0.44239203]
[1767294419597,0.04535145,88214.0,88200.0,0.45372989]
[1767294420188,0.04535145,88214.0,88200.0,0.44239203]
[1767294420352,0.04535145,88214.0,88200.0,0.45372989]
[1767294421628,0.04535145,88214.0,88200.0,0.44239203]
[1767294422202,0.04535145,88214.0,88200.0,0.45372989]
[1767294422926,0.04535145,88214.0,88200.0,0.44239203]
[1767294423620,0.04535145,88214.0,88200.0,0.45372989]
[1767294424130,0.04535145,88214.0,88200.0,0.44239203]
[1767294426084,0.04535145,88214.0,88200.0,0.45372989]
[1767294426376,0.04535145,88214.0,88200.0,0.44239203]
[1767294426776,0.04535145,88214.0,88200.0,0.45372989]
[1767294427381,0.04535145,88214.0,88200.0,0.44239203]
[1767294427778,0.04535145,88214.0,88200.0,0.45372989]
[1767294428511,0.04535145,88214.0,88202.0,0.01133761]
[1767294428666,0.04535145,88214.0,88201.0,0.01133773]
[1767294428872,0.04535145,88214.0,88202.0,0.01133761]
[1767294429714,0.04535145,88214.0,88203.0,0.01133748]
[1767294429941,0.04535145,88214.0,88204.0,0.01133735]
[1767294430682,0.04535145,88214.0,88203.0,0.01133748]
[1767294431784,0.04535145,88214.0,88204.0,0.01133735]
[1767294432212,0.04535145,88214.0,88203.0,0.01133748]
[1767294432400,0.04535145,88214.0,88204.0,0.01133735]
[1767294433026,0.01136,88217.0,88204.0,0.01133735]
[1767294433327,0.03515042,88216.0,88204.0,0.01133735]
[1767294433481,0.03515042,88215.0,88203.0,0.01133748]
[1767294433687,0.01136,88217.0,88204.0,0.01133735]
[1767294433883,0.03515034,88216.0,88204.0,0.01133735]
[1767294434105,0.02451162,88215.0,88204.0,0.01133735]
[1767294434311,0.01136,88217.0,88204.0,0.01133735]
[1767294434515,0.03515031,88216.0,88204.0,0.01133735]
[1767294434837,0.0245116,88215.0,88204.0,0.01133735]
[1767294435027,0.01136,88217.0,88204.0,0.01133735]
[1767294435232,0.03515027,88216.0,88204.0,0.01133735]
[1767294435436,0.03515027,88215.0,88204.0,0.01133735]
[1767294435729,0.05722337,88217.0,88204.0,0.01133735]
[1767294435933,0.03515023,88216.0,88204.0,0.01133735]
[1767294436178,0.03515023,88215.0,88204.0,0.01133735]
[1767294436376,0.05722337,88217.0,88204.0,0.01133735]
[1767294436528,0.0351502,88216.0,88204.0,0.01133735]
[1767294436735,0.0351502,88215.0,88204.0,0.01133735]
[1767294436977,0.05722337,88217.0,88204.0,0.01133735]
[1767294437150,0.0351502,88216.0,88204.0,0.01133735]
[1767294437348,0.0351502,88215.0,88204.0,0.01133735]
[1767294437562,0.05722337,88217.0,88204.0,0.01133735]
[1767294437756,0.03515017,88216.0,88204.0,0.01133735]
[1767294437954,0.0245115,88215.0,88204.0,0.01133735]
[1767294438164,0.05722337,88217.0,88205.0,0.01133722]
[1767294438363,0.0351501,88216.0,88204.0,0.01133735]
[1767294438547,0.02451143,88215.0,88204.0,0.01133735]
[1767294438742,0.05722337,88217.0,88204.0,0.01133735]
[1767294438954,0.03515002,88216.0,88204.0,0.01133735]
[1767294439155,0.02451139,88215.0,88204.0,0.01133735]
[1767294439369,0.05722337,88217.0,88204.0,0.01133735]
[1767294439549,0.03514997,88216.0,88204.0,0.01133735]
[1767294439747,0.02451136,88215.0,88204.0,0.01133735]
[1767294439955,0.05722337,88217.0,88204.0,0.01133735]
[1767294440154,0.03515,88216.0,88204.0,0.01133735]
[1767294440381,0.02451138,88215.0,88204.0,0.01133735]
[1767294440559,0.05722337,88217.0,88205.0,0.01133722]
[1767294440740,0.03514702,88216.0,88205.0,0.01133722]
[1767294440937,0.02450931,88215.0,88205.0,0.01133722]
[1767294441141,0.05722337,88217.0,88205.0,0.01133722]
[1767294441341,0.03514727,88216.0,88205.0,0.01133722]
[1767294441583,0.02450956,88215.0,88205.0,0.01133722]
[1767294441794,0.05722337,88217.0,88205.0,0.01133722]
[1767294441958,0.03514737,88216.0,88204.0,0.01133735]
[1767294442158,0.02450955,88215.0,88204.0,0.01133735]
[1767294442476,0.05722337,88217.0,88204.0,0.01133735]
[1767294442673,0.03514737,88216.0,88204.0,0.01133735]
[1767294442991,0.02450955,88215.0,88204.0,0.01133735]
[1767294443153,0.05722337,88217.0,88204.0,0.01133735]
[1767294443361,0.03514699,88216.0,88204.0,0.01133735]
[1767294443560,0.02450929,88215.0,88204.0,0.01133735]
[1767294443861,0.05722337,88217.0,88204.0,0.01133735]
[1767294444060,0.03514698,88216.0,88204.0,0.01133735]
[1767294444249,0.02450928,88215.0,88204.0,0.01133735]
[1767294444454,0.05722337,88217.0,88204.0,0.01133735]
[1767294444658,0.03514704,88216.0,88204.0,0.01133735]
[1767294444886,0.02450932,88215.0,88204.0,0.01133735]
[1767294445252,0.05722337,88217.0,88204.0,0.01133735]
[1767294445549,0.03514704,88216.0,88204.0,0.01133735]
[1767294445758,0.02450932,88215.0,88204.0,0.01133735]
[1767294445899,0.05722337,88217.0,88204.0,0.01133735]
[1767294446237,0.03514705,88216.0,88204.0,0.01133735]
[1767294446410,0.02450933,88215.0,88204.0,0.01133735]
[1767294446616,0.05722337,88217.0,88204.0,0.01133735]
[1767294446915,0.03514705,88216.0,88204.0,0.01133735]
[1767294447118,0.02450933,88215.0,88204.0,0.01133735]
[1767294447320,0.05722337,88217.0,88204.0,0.01133735]
[1767294447534,0.03514706,88216.0,88204.0,0.01133735]
[1767294447713,0.02450934,88215.0,88204.0,0.01133735]
[1767294447907,0.05722337,88217.0,88204.0,0.01133735]
[1767294448192,0.03514702,88216.0,88204.0,0.01133735]
[1767294448364,0.02450931,88215.0,88204.0,0.01133735]
[1767294448655,0.05722337,88217.0,88204.0,0.01133735]
[1767294448949,0.03514701,88216.0,88204.0,0.01133735]
[1767294449253,0.0245093,88215.0,88204.0,0.01133735]
[1767294449467,0.05722337,88217.0,88204.0,0.01133735]
[1767294449663,0.03514706,88216.0,88205.0,0.01133722]
[1767294449872,0.02450934,88215.0,88204.0,0.01133735]
[1767294450016,0.05722337,88217.0,88204.0,0.01133735]
[1767294450220,0.03514706,88216.0,88204.0,0.01133735]
[1767294450536,0.02450934,88215.0,88205.0,0.01133722]
[1767294450870,0.05722337,88217.0,88205.0,0.01133722]
[1767294451119,0.03514584,88216.0,88205.0,0.01133722]
[1767294451301,0.02450849,88215.0,88204.0,0.01133735]
[1767294451504,0.05722337,88217.0,88204.0,0.01133735]
[1767294451744,0.03514594,88216.0,88204.0,0.01133735]
[1767294451854,0.02450856,88215.0,88204.0,0.01133735]
[1767294452061,0.05722337,88217.0,88205.0,0.01133722]
[1767294452265,0.03514358,88216.0,88204.0,0.01133735]
[1767294452597,0.02450691,88215.0,88204.0,0.01133735]
[1767294452797,0.05722337,88217.0,88204.0,0.01133735]
[1767294453049,0.03513825,88216.0,88204.0,0.01133735]
[1767294453250,0.02450319,88215.0,88204.0,0.01133735]
[1767294453381,0.05722337,88217.0,88204.0,0.01133735]
[1767294453738,0.03513773,88216.0,88204.0,0.01133735]
[1767294453883,0.02450283,88215.0,88204.0,0.01133735]
[1767294454069,0.05722337,88217.0,88204.0,0.01133735]
[1767294454270,0.03513773,88216.0,88203.0,0.01133748]
[1767294454512,0.02450283,88215.0,88203.0,0.01133748]
[1767294454712,0.05722337,88217.0,88203.0,0.01133748]
[1767294454933,0.08117279,88216.0,88203.0,0.01133748]
[1767294455104,0.02450285,88215.0,88203.0,0.01133748]
[1767294455696,0.02450285,88215.0,88204.0,0.01133735]
[1767294455930,0.02450285,88215.0,88203.0,0.01133748]
[1767294456819,0.04603511,88214.0,88200.0,0.45372989]
[1767294457039,0.04603511,88214.0,88200.0,0.44239203]
[1767294457040,0.000549,88203.0,88200.0,0.44239203]
[1767294457193,0.000549,88203.0,88200.0,0.00040716]
[1767294457387,0.04603511,88214.0,88200.0,0.00040716]
[1767294457598,0.04603511,88214.0,88201.0,0.01136]
[1767294465160,0.04603511,88214.0,88200.0,0.44239203]
[1767294465336,0.04603511,88214.0,88201.0,0.01136]
[1767294469064,0.04603511,88214.0,88201.0,0.02269773]
[1767294469264,0.04603511,88214.0,88203.0,0.01133748]
[1767294469905,0.04603511,88214.0,88204.0,0.01133735]
[1767294470144,0.04603511,88214.0,88203.0,0.01133748]
[1767294470669,0.04603511,88214.0,88204.0,0.01133735]
[1767294470835,0.04603511,88214.0,88203.0,0.01133748]
[1767294471041,0.04603511,88214.0,88204.0,0.01133735]
[1767294471609,0.04603511,88214.0,88203.0,0.01133748]
[1767294473821,0.04603511,88214.0,88202.0,0.01133761]
[1767294473966,0.04603511,88214.0,88203.0,0.01133748]
[1767294474486,0.04603511,88214.0,88202.0,0.01133761]
[1767294475071,0.04603511,88214.0,88203.0,0.01133748]
[1767294483499,0.04603511,88214.0,88204.0,0.01133735]
[1767294483827,0.04603511,88214.0,88203.0,0.01133748]
[1767294484026,0.04603511,88214.0,88202.0,0.01133761]
[1767294484393,0.04603511,88214.0,88203.0,0.01133748]
[1767294484879,0.04603511,88214.0,88204.0,0.01133735]
[1767294488052,0.04603511,88214.0,88203.0,0.01133748]
[1767294489935,0.04603511,88214.0,88202.0,0.01133761]
[1767294490338,0.04603511,88214.0,88203.0,0.01133748]
[1767294491088,0.04603511,88214.0,88204.0,0.01133735]
[1767294491887,0.05777278,88220.0,88214.0,0.00055]
[1767294492021,0.04641278,88218.0,88214.0,0.00055]
[1767294492223,0.04641278,88218.0,88208.0,0.01133684]
[1767294492424,0.04641278,88218.0,88209.0,0.01133671]
[1767294492638,0.04641278,88218.0,88208.0,0.01133684]
[1767294493756,0.04641278,88218.0,88207.0,0.01133696]
[1767294493955,0.04641278,88218.0,88208.0,0.01133684]
[1767294494204,0.01136,88221.0,88209.0,0.01133671]
[1767294494386,0.03510255,88220.0,88207.0,0.01133696]
[1767294494585,0.03510224,88219.0,88208.0,0.01133684]
[1767294494766,0.02447809,88218.0,88208.0,0.01133684]
[1767294494965,0.05777278,88221.0,88208.0,0.01133684]
[1767294495193,0.03510212,88220.0,88208.0,0.01133684]
[1767294495390,0.03510212,88219.0,88207.0,0.01133696]
[1767294495733,0.02447801,88218.0,88207.0,0.01133696]
[1767294496057,0.05777278,88221.0,88208.0,0.01133684]
[1767294496265,0.03510086,88220.0,88208.0,0.01133684]
[1767294496398,0.03510086,88219.0,88208.0,0.01133684]
[1767294496596,0.02447699,88218.0,88209.0,0.01133671]
[1767294496824,0.04641278,88219.0,88208.0,0.01133684]
[1767294497643,0.04641278,88219.0,88207.0,0.01133696]
[1767294497823,0.04641278,88219.0,88208.0,0.01133684]
[1767294498321,0.04641278,88219.0,88207.0,0.01133696]
[1767294498517,0.04641278,88219.0,88206.0,0.01133709]
[1767294498732,0.04641278,88219.0,88204.0,0.01133735]
[1767294498922,0.04641278,88219.0,88205.0,0.01133722]
[1767294499490,0.04641278,88219.0,88206.0,0.01133709]
[1767294500768,0.04641278,88219.0,88205.0,0.01133722]
[1767294501406,0.04641278,88219.0,88206.0,0.01133709]
[1767294501576,0.04641278,88219.0,88205.0,0.01133722]
[1767294501949,0.04641278,88219.0,88204.0,0.01133735]
[1767294502353,0.04641278,88219.0,88205.0,0.01133722]
[1767294502679,0.04641278,88219.0,88203.0,0.01133748]
[1767294502907,0.04641278,88219.0,88204.0,0.01133735]
[1767294503863,0.04641278,88219.0,88205.0,0.01133722]
[1767294504066,0.04641278,88219.0,88204.0,0.01133735]
[1767294504671,0.04641278,88219.0,88203.0,0.01133748]
[1767294505012,0.0696132,88218.0,88204.0,0.01133735]
[1767294505212,0.04513683,88218.0,88204.0,0.01133735]
[1767294505781,0.04513683,88218.0,88203.0,0.01133748]
[1767294505976,0.04513683,88218.0,88204.0,0.01133735]
[1767294506225,0.04513683,88218.0,88203.0,0.01133748]
[1767294506770,0.04513683,88218.0,88204.0,0.01133735]
[1767294507580,0.04513683,88218.0,88202.0,0.01133735]
[1767294508376,0.04513683,88217.0,88202.0,0.01133735]
[1767294508841,0.04513683,88217.0,88200.0,0.44232744]
[1767294508842,0.04513683,88214.0,88200.0,0.00040716]
[1767294509039,0.04568583,88202.0,88196.0,0.01136]
[1767294509202,0.04519278,88202.0,88196.0,0.01136]
[1767294512123,5.595e-05,88202.0,88196.0,0.01136]
[1767294512250,0.04513683,88212.0,88202.0,0.00049405]
[1767294512454,0.04513683,88212.0,88196.0,0.01136]
[1767294512872,0.04513683,88212.0,88196.0,0.02269838]
[1767294513055,0.04513683,88212.0,88196.0,0.01136]
[1767294516298,0.04513683,88212.0,88196.0,0.02269838]
[1767294516651,0.04513683,88212.0,88196.0,0.01136]
[1767294517728,0.04513683,88212.0,88196.0,0.02269838]
[1767294518958,0.04513683,88212.0,88196.0,0.01136]
[1767294523004,0.04513683,88209.0,88193.0,0.0001472]
[1767294523218,0.04519183,88196.0,88193.0,0.0001472]
[1767294523423,5.5e-05,88196.0,88193.0,0.0001472]
[1767294523634,0.04513683,88201.0,88193.0,0.0001472]
[1767294524280,0.04513683,88201.0,88193.0,9.22e-05]
[1767294526894,0.04513683,88201.0,88184.0,0.01148712]
[1767294526895,0.04513683,88197.0,88190.0,0.01136]
[1767294527069,0.04513683,88197.0,88190.0,0.01081]
[1767294535128,0.04513683,88197.0,88190.0,0.01076731]
[1767294535550,0.04513683,88197.0,88190.0,0.00212572]
[1767294541813,0.04513683,88197.0,88185.0,0.01136]
[1767294542038,0.05667552,88202.0,88185.0,0.05673977]
[1767294542232,0.44215236,88200.0,88185.0,0.05673977]
[1767294543236,0.45349022,88200.0,88185.0,0.05673977]
[1767294543479,0.44215236,88200.0,88185.0,0.05673977]
[1767294548075,0.45349022,88200.0,88185.0,0.05673977]
[1767294549388,0.01133799,88199.0,88185.0,0.05673977]
[1767294549581,0.49882813,88200.0,88185.0,0.05673977]
[1767294550115,0.48749027,88200.0,88185.0,0.05673977]
[1767294550378,0.49882813,88200.0,88185.0,0.05673977]
[1767294550593,0.48749027,88200.0,88185.0,0.05673977]
[1767294550934,0.04533791,88199.0,88185.0,0.05673977]
[1767294551926,0.0566759,88199.0,88185.0,0.05673977]
[1767294552131,0.04533791,88199.0,88185.0,0.05673977]
[1767294553170,0.05669791,88199.0,88185.0,0.04537977]
[1767294554689,0.05669791,88199.0,88185.0,0.04543572]
[1767294554957,0.0680359,88199.0,88185.0,0.04543572]
[1767294555371,0.05669791,88199.0,88185.0,0.04543572]
[1767294555571,0.01133812,88198.0,88185.0,0.04543572]
[1767294555819,0.0680359,88199.0,88185.0,0.04543572]
[1767294556229,0.05669791,88199.0,88185.0,0.04543572]
[1767294556434,0.05669791,88199.0,88185.0,5.595e-05]
[1767294556945,0.0680359,88199.0,88185.0,5.595e-05]
[1767294557566,0.01133889,88192.0,88185.0,5.595e-05]
[1767294557878,0.04533791,88191.0,88185.0,5.595e-05]
[1767294558934,0.04533791,88191.0,88180.0,0.00737851]
[1767294559345,0.04533791,88189.0,88180.0,0.00737851]
[1767294559756,0.45349151,88190.0,88175.0,0.0001472]
[1767294559965,0.02269889,88192.0,88175.0,0.0001472]
[1767294559966,0.01133992,88184.0,88175.0,0.0001472]
[1767294560170,0.04533791,88181.0,88175.0,0.0001472]
[1767294560584,0.04533791,88181.0,88166.0,0.0001472]
[1767294560585,0.04533791,88179.0,88166.0,0.0001472]
[1767294562002,0.04533791,88178.0,88166.0,0.0001472]
[1767294563498,0.04478891,88178.0,88166.0,0.01148944]
[1767294563713,0.04478891,88178.0,88166.0,0.0001472]
[1767294564334,0.04478891,88178.0,88166.0,0.01148944]
[1767294564937,0.04478891,88178.0,88166.0,0.0001472]
[1767294565141,0.04478891,88178.0,88167.0,0.01134211]
[1767294565340,0.04478891,88178.0,88166.0,0.01148944]
[1767294565552,0.04478891,88178.0,88167.0,0.01134211]
[1767294566407,0.01136,88183.0,88166.0,0.04657306]
[1767294566574,0.48854438,88180.0,88166.0,0.04657306]
[1767294566765,0.04639202,88179.0,88166.0,0.0001472]
[1767294567569,0.02270005,88183.0,88158.0,0.0003472]
[1767294567570,0.04639202,88165.0,88158.0,0.0003472]
[1767294567802,0.05775202,88165.0,88158.0,0.0003472]
[1767294569229,0.05775202,88165.0,88158.0,0.0002]
[1767294570167,0.04639202,88165.0,88158.0,0.0002]
[1767294570385,0.01136,88164.0,88158.0,0.0002]
[1767294572137,0.01081,88164.0,88158.0,0.0002]
[1767294573556,0.04639202,88178.0,88161.0,0.04642586]
[1767294573758,0.01136,88177.0,88161.0,0.04642586]
[1767294574077,0.05775202,88177.0,88161.0,0.04642586]
[1767294574569,0.05773297,88176.0,88160.0,0.44215236]
[1767294574769,0.04639202,88176.0,88160.0,0.44215236]
[1767294575287,0.05773297,88176.0,88160.0,0.44215236]
[1767294575487,0.04639202,88176.0,88160.0,0.44215236]
[1767294576062,0.04639202,88176.0,88160.0,0.45349537]
[1767294576267,0.04639202,88176.0,88160.0,0.44215236]
[1767294578069,0.04639202,88176.0,88160.0,0.45349537]
[1767294578494,0.04639202,88176.0,88160.0,0.44215236]
[1767294579091,0.04639202,88176.0,88160.0,0.44225629]
[1767294580801,0.05773297,88176.0,88160.0,0.44225629]
[1767294581458,0.04639202,88176.0,88160.0,0.44225629]
[1767294581892,0.04639202,88176.0,88161.0,0.01134288]
[1767294582111,0.04639202,88176.0,88160.0,0.44225629]
[1767294583004,0.04639202,88176.0,88160.0,0.00010393]
[1767294583268,0.04639202,88176.0,88160.0,0.44225629]
[1767294583472,0.01136,88175.0,88160.0,0.44225629]
[1767294584962,0.05775202,88175.0,88160.0,0.44225629]
[1767294586455,0.01136,88174.0,88160.0,0.44225629]
[1767294587440,0.01136,88174.0,88160.0,0.4535993]
[1767294588447,0.01136,88174.0,88161.0,0.01134288]
[1767294589156,0.01136,88174.0,88160.0,0.4535993]
[1767294590743,0.01136,88174.0,88160.0,0.44225629]
[1767294591448,0.01136,88174.0,88160.0,0.4535993]
[1767294592398,0.01136,88174.0,88160.0,0.44225629]
[1767294592600,0.01136,88174.0,88160.0,0.4535993]
[1767294592762,0.01136,88174.0,88161.0,0.01134288]
[1767294594204,0.02448634,88173.0,88160.0,0.4535993]
[1767294594371,0.02448634,88173.0,88161.0,0.01134288]
[1767294596176,0.02448634,88173.0,88162.0,0.01134275]
[1767294596382,0.01063399,88172.0,88160.0,0.01134301]
[1767294596528,0.01136,88174.0,88160.0,0.45349537]
[1767294596737,0.0351347,88173.0,88160.0,0.45349537]
[1767294597064,0.0351347,88172.0,88160.0,0.45349537]
[1767294597222,0.02450072,88171.0,88160.0,0.45349537]
[1767294597421,0.03514154,88170.0,88160.0,0.45349537]
[1767294597648,0.01136,88174.0,88160.0,0.45349537]
[1767294597958,0.03515721,88173.0,88160.0,0.45349537]
[1767294598179,0.03515721,88172.0,88160.0,0.45349537]
[1767294598488,0.03515721,88171.0,88160.0,0.45349537]
[1767294598689,0.03515721,88170.0,88161.0,0.01134288]
[1767294598828,0.01136,88174.0,88161.0,0.01134288]
[1767294599027,0.03515734,88173.0,88161.0,0.01134288]
[1767294599328,0.03515734,88172.0,88161.0,0.01134288]
[1767294599553,0.03515734,88171.0,88161.0,0.01134288]
[1767294599754,0.03515734,88170.0,88161.0,0.01134288]
[1767294600064,0.01136,88174.0,88161.0,0.01134288]
[1767294600290,0.03515761,88173.0,88161.0,0.01134288]
[1767294600415,0.03515761,88172.0,88161.0,0.01134288]
[1767294600630,0.03515761,88171.0,88161.0,0.01134288]
[1767294600917,0.03515761,88170.0,88161.0,0.01134288]
[1767294601087,0.01136,88174.0,88161.0,0.01134288]
[1767294601284,0.03515777,88173.0,88161.0,0.01134288]
[1767294601522,0.02451683,88172.0,88164.0,0.01134249]
[1767294601717,0.00818852,88171.0,88168.0,0.01134198]
[1767294601999,0.01136,88171.0,88167.0,0.05718323]
[1767294603165,0.01136,88171.0,88165.0,0.01134236]
[1767294603378,0.01136,88171.0,88166.0,0.05718336]
[1767294603561,0.01136,88171.0,88167.0,0.01134211]
[1767294607087,0.01136,88171.0,88168.0,0.01134198]
[1767294609539,0.04773464,88181.0,88168.0,0.01134198]
[1767294609750,0.01136,88176.0,88168.0,0.01134198]
[1767294609979,0.04773464,88181.0,88168.0,0.01134198]
[1767294610179,0.01136,88176.0,88168.0,0.01134198]
[1767294612139,0.01136,88176.0,88167.0,0.01134211]
[1767294612724,0.01136,88176.0,88168.0,0.01134198]
[1767294613703,0.02450321,88175.0,88168.0,0.01134198]
[1767294614336,0.02450321,88175.0,88167.0,0.01134211]
[1767294614536,0.02450321,88175.0,88168.0,0.01134198]
[1767294614797,0.02450321,88175.0,88167.0,0.01134211]
[1767294615388,0.02450321,88175.0,88166.0,0.01134224]
[1767294615782,0.02450321,88175.0,88165.0,0.01134236]
[1767294615985,0.02450321,88175.0,88166.0,0.01134224]
[1767294616310,0.02450321,88175.0,88165.0,0.01134236]
[1767294616865,0.02450321,88175.0,88164.0,0.05718361]
[1767294617065,0.02450321,88175.0,88163.0,0.01134262]
[1767294617361,0.02450321,88175.0,88164.0,0.01134249]
[1767294620725,0.02450321,88175.0,88163.0,0.01134262]
[1767294621198,0.02450321,88175.0,88164.0,0.01134249]
[1767294621328,0.02450321,88175.0,88163.0,0.01134262]
[1767294623679,0.02450321,88175.0,88164.0,0.01134249]
[1767294624283,0.02450321,88175.0,88165.0,0.01134236]
[1767294624487,0.02450321,88175.0,88164.0,0.01134249]
[1767294625036,0.02450321,88175.0,88165.0,0.01134236]
[1767294625375,0.02450859,88174.0,88166.0,0.01134224]
[1767294625599,0.01136,88176.0,88166.0,0.01134224]
[1767294625804,0.03514598,88175.0,88166.0,0.01134224]
[1767294626001,0.0245086,88174.0,88166.0,0.01134224]
[1767294626178,0.01136,88176.0,88166.0,0.01134224]
[1767294626377,0.03514708,88175.0,88166.0,0.01134224]
[1767294626579,0.0001244,88186.0,88168.0,0.01134198]
[1767294626580,0.04859119,88182.0,88168.0,0.01134198]
[1767294626909,0.04650977,88181.0,88170.0,0.44229274]
[1767294627101,0.03514977,88180.0,88170.0,0.44229274]
[1767294627305,0.03514977,88179.0,88170.0,0.44229274]
[1767294627486,0.000549,88170.0,88169.0,0.44229274]
[1767294627686,0.000549,88170.0,88162.0,0.04798538]
[1767294627872,0.04859119,88179.0,88162.0,0.05932813]
[1767294628073,0.03514789,88178.0,88162.0,0.05932813]
[1767294628313,0.03514789,88177.0,88162.0,0.05932813]
[1767294628521,0.04859119,88179.0,88163.0,0.01134262]
[1767294628722,0.03514937,88178.0,88162.0,0.04798538]
[1767294628941,0.02451096,88177.0,88162.0,0.05932813]
[1767294629138,0.04859119,88179.0,88163.0,0.01134262]
[1767294629290,0.03514983,88178.0,88162.0,0.05932813]
[1767294629506,0.04859119,88179.0,88162.0,0.05932813]
[1767294629507,0.0245117,88177.0,88164.0,0.01134249]
[1767294629696,0.04859119,88179.0,88164.0,0.01134249]
[1767294629930,0.03515044,88178.0,88164.0,0.01134249]
[1767294630094,0.0245117,88177.0,88162.0,0.05932813]
[1767294630295,0.04859119,88179.0,88162.0,0.05932813]
[1767294630495,0.03514959,88178.0,88163.0,0.01134262]
[1767294630696,0.02451111,88177.0,88163.0,0.01134262]
[1767294630949,0.04859119,88179.0,88163.0,0.01134262]
[1767294631165,0.03514959,88178.0,88163.0,0.01134262]
[1767294631365,0.03514959,88177.0,88163.0,0.01134262]
[1767294631574,0.04859119,88179.0,88163.0,0.01134262]
[1767294631781,0.03515131,88178.0,88163.0,0.01134262]
[1767294631983,0.03515131,88177.0,88163.0,0.01134262]
[1767294632131,0.04859119,88179.0,88163.0,0.01134262]
[1767294632477,0.03515042,88178.0,88163.0,0.01134262]
[1767294632629,0.02451168,88177.0,88164.0,0.01134249]
[1767294632836,0.04859119,88179.0,88165.0,0.01134236]
[1767294633052,0.03515043,88178.0,88165.0,0.01134236]
[1767294633231,0.02451168,88177.0,88165.0,0.01134236]
[1767294633414,0.04859119,88179.0,88165.0,0.01134236]
[1767294633622,0.03514966,88178.0,88165.0,0.01134236]
[1767294633980,0.02451114,88177.0,88167.0,0.01134211]
[1767294634292,0.04859119,88179.0,88167.0,0.01134211]
[1767294634441,0.035149,88178.0,88167.0,0.01134211]
[1767294634645,0.02451068,88177.0,88167.0,0.01134211]
[1767294634981,0.04859119,88179.0,88167.0,0.01134211]
[1767294635145,0.035149,88178.0,88167.0,0.01134211]
[1767294635325,0.02451068,88177.0,88166.0,0.01134224]
[1767294635531,0.04859119,88179.0,88166.0,0.01134224]
[1767294635777,0.0351484,88178.0,88166.0,0.01134224]
[1767294636085,0.02451027,88177.0,88167.0,0.01134211]
[1767294636324,0.04859119,88179.0,88167.0,0.01134211]
[1767294636484,0.03514792,88178.0,88167.0,0.01134211]
[1767294636665,0.02450993,88177.0,88166.0,0.01134224]
[1767294636861,0.04859119,88179.0,88166.0,0.01134224]
[1767294637087,0.0351479,88178.0,88166.0,0.01134224]
[1767294637313,0.02450992,88177.0,88166.0,0.01134224]
[1767294637513,0.04859119,88179.0,88166.0,0.01134224]
[1767294637683,0.03514749,88178.0,88165.0,0.01134236]
[1767294637857,0.02450963,88177.0,88166.0,0.01134224]
[1767294638058,0.04859119,88179.0,88166.0,0.01134224]
[1767294638292,0.03514749,88178.0,88166.0,0.01134224]
[1767294638476,0.02450963,88177.0,88166.0,0.01134224]